fUST/lending_fUST_20250116
["ID","MTS","AMOUNT","RATE_DAILY","PERIOD"]
[349201852,1737033045877,-5408.66585599,0.00020452,2]
[349201853,1737033045887,-160.0,0.00020494,5]
[349201854,1737033045896,-9998.25472008,0.000205,2]
[349201855,1737033045906,-408.022755,0.00020521,2]
[349201856,1737033045915,-195.334235,0.00020547,2]
[349201858,1737033045925,-195.334238,0.00020547,2]
[349201859,1737033045935,-500.0,0.00020547,3]
[349201860,1737033045944,-832.53,0.00020547,3]
[349201861,1737033045953,-500.0,0.00020547,3]
[349201862,1737033045963,-500.0,0.00020547,3]
[349201863,1737033045972,-500.0,0.00020547,3]
[349201865,1737033045981,-500.0,0.00020547,3]
[349201867,1737033045991,-500.0,0.00020547,3]
[349201868,1737033046000,-500.0,0.00020547,3]
[349201870,1737033046009,-551.0,0.00020547,3]
[349201872,1737033046019,-500.0,0.00020547,3]
[349201873,1737033046028,-1004.49738054,0.00020547,2]
[349201874,1737033046037,-500.0,0.00020547,3]
[349201875,1737033046047,-151.0,0.00020547,2]
[349201876,1737033046056,-14119.6,0.00020547,3]
[349201877,1737033046066,-1869.13,0.00020547,3]
[349201878,1737033046076,-2291.8,0.00020547,3]
[349201879,1737033046086,-1195.93,0.00020547,2]
[349201880,1737033046100,-736.29,0.00020547,3]
[349201881,1737033046111,-500.0,0.00020547,3]
[349201882,1737033046120,-196.760453,0.00020547,2]
[349201883,1737033046130,-1626.84,0.00020547,3]
[349201884,1737033046142,-196.76046,0.00020547,2]
[349201885,1737033046152,-491.417974,0.00020547,2]
[349201886,1737033046162,-491.417966,0.00020547,2]
[349201887,1737033046172,-5668.63,0.00020547,3]
[349201888,1737033046180,-500.0,0.00020547,3]
[349201889,1737033046189,-609.19,0.00020547,3]
[349201891,1737033046198,-7351.8,0.00020547,3]
[349201893,1737033046206,-500.0,0.00020547,3]
[349201894,1737033046215,-1002.68,0.00020547,3]
[349201895,1737033046223,-616.31,0.00020547,3]
[349201896,1737033046231,-618.603962,0.00020547,2]
[349201897,1737033046241,-618.603954,0.00020547,2]
[349201899,1737033046250,-151.0,0.00020547,2]
[349201901,1737033046261,-500.0,0.00020547,3]
[349201902,1737033046270,-1090.54,0.00020547,3]
[349201903,1737033046280,-3894.3,0.00020547,3]
[349201904,1737033046290,-838.65,0.00020547,3]
[349201906,1737033046300,-1085.39,0.00020547,3]
[349201908,1737033046313,-151.0,0.00020547,2]
[349201909,1737033046322,-600.16,0.00020547,3]
[349201911,1737033046331,-2740.8,0.00020547,3]
[349201913,1737033046343,-500.0,0.00020547,3]
[349201915,1737033046352,-905.83,0.00020547,3]
[349201917,1737033046362,-1525.85,0.00020547,3]
[349201918,1737033046371,-500.0,0.00020547,3]
[349201920,1737033046380,-151.0,0.00020548,2]
[349201922,1737033046390,-169.341886,0.00020548,2]
[349201924,1737033046399,-424.439,0.0002059,2]
[349201926,1737033046409,-408.022755,0.00020603,2]
[349201928,1737033046419,-5408.66585599,0.00020624,2]
[349201929,1737033046429,-500.0,0.00020684,3]
[349201931,1737033046439,-832.53,0.00020684,3]
[349201933,1737033046450,-500.0,0.00020684,3]
[349201934,1737033046460,-364.25946267,0.00020684,3]
[349201936,1737033046469,-14119.6,0.00020684,3]
[349201937,1737033046479,-1869.13,0.00020684,3]
[349201938,1737033046489,-2291.8,0.00020684,3]
[349201939,1737033046498,-1195.93,0.00020684,2]
[349201940,1737033046507,-736.29,0.00020684,3]
[349201941,1737033046518,-500.0,0.00020684,3]
[349201942,1737033046528,-1626.84,0.00020684,3]
[349201943,1737033046538,-5668.63,0.00020684,3]
[349201944,1737033046547,-500.0,0.00020684,3]
[349201945,1737033046556,-609.19,0.00020684,3]
[349201946,1737033046566,-7351.8,0.00020684,3]
[349201947,1737033046575,-500.0,0.00020684,3]
[349201948,1737033046585,-1002.68,0.00020684,3]
[349201950,1737033046598,-616.31,0.00020684,3]
[349201951,1737033046607,-500.0,0.00020684,3]
[349201953,1737033046617,-1090.54,0.00020684,3]
[349201955,1737033046626,-3894.3,0.00020684,3]
[349201957,1737033046635,-838.65,0.00020684,3]
[349201959,1737033046645,-1085.39,0.00020684,3]
[349201961,1737033046655,-600.16,0.00020684,3]
[349201962,1737033046665,-2740.8,0.00020684,3]
[349201964,1737033046674,-500.0,0.00020684,3]
[349201966,1737033046684,-905.83,0.00020684,3]
[349201967,1737033046694,-1525.85,0.00020684,3]
[349201968,1737033046704,-500.0,0.00020684,3]
[349201969,1737033046713,-408.022755,0.00020685,2]
[349201971,1737033046723,-500.0,0.00020695,2]
[349201972,1737033046733,-227.8490794,0.00020695,2]
[349201973,1737033046743,-500.559438,0.00020695,2]
[349201974,1737033046753,-500.0,0.00020695,2]
[349201975,1737033046763,-500.0,0.00020695,2]
[349201976,1737033046772,-162.71709109,0.00020695,2]
[349201977,1737033046783,-500.0,0.00020695,2]
[349201978,1737033046793,-500.0,0.00020695,2]
[349201980,1737033046803,-500.0,0.00020695,2]
[349201981,1737033046812,-408.022755,0.00020767,2]
[349201983,1737033046822,-5408.66585599,0.00020797,2]
[349201985,1737033046832,-648.4891608,0.00020806,2]
[349201987,1737033046842,-500.0,0.00020821,3]
[349201990,1737033046852,-832.53,0.00020821,3]
[349201992,1737033046862,-500.0,0.00020821,3]
[349201994,1737033046871,-14119.6,0.00020821,3]
[349201996,1737033046881,-1869.13,0.00020821,3]
[349201998,1737033046890,-2291.8,0.00020821,3]
[349202000,1737033046899,-1195.93,0.00020821,2]
[349202001,1737033046909,-500.0,0.00020821,3]
[349202002,1737033046918,-736.29,0.00020821,3]
[349202003,1737033046927,-1626.84,0.00020821,3]
[349202004,1737033046937,-5668.63,0.00020821,3]
[349202005,1737033046947,-500.0,0.00020821,3]
[349202006,1737033046957,-609.19,0.00020821,3]
[349202007,1737033046966,-7351.8,0.00020821,3]
[349202008,1737033046975,-500.0,0.00020821,3]
[349202009,1737033046985,-1002.68,0.00020821,3]
[349202010,1737033046995,-616.31,0.00020821,3]
[349202011,1737033047005,-500.0,0.00020821,3]
[349202012,1737033047014,-1090.54,0.00020821,3]
[349202013,1737033047024,-3894.3,0.00020821,3]
[349202014,1737033047033,-838.65,0.00020821,3]
[349202015,1737033047043,-1085.39,0.00020821,3]
[349202016,1737033047052,-600.16,0.00020821,3]
[349202017,1737033047062,-500.0,0.00020821,3]
[349202018,1737033047071,-2740.8,0.00020821,3]
[349202019,1737033047080,-905.83,0.00020821,3]
[349202020,1737033047092,-1525.85,0.00020821,3]
[349202021,1737033047101,-500.0,0.00020821,3]
[349202022,1737033047110,-151.09899879,0.00020829,2]
[349202023,1737033047120,-194.9,0.0002083,2]
[349202024,1737033047130,-179.0,0.00020845,2]
[349202025,1737033047140,-408.022755,0.00020849,2]
[349202026,1737033047149,-500.0,0.0002085,2]
[349202027,1737033047159,-585.27913097,0.00020854,2]
[349202028,1737033047168,-510.0,0.000209,9]
[349202029,1737033047178,-655.82130697,0.00020917,2]
[349202030,1737033047188,-408.022755,0.00020932,2]
[349202031,1737033047198,-500.0,0.00020958,3]
[349202032,1737033047208,-832.53,0.00020958,3]
[349202033,1737033047218,-500.0,0.00020958,3]
[349202034,1737033047227,-14119.6,0.00020958,3]
[349202036,1737033047237,-1869.13,0.00020958,3]
[349202037,1737033047247,-2291.8,0.00020958,3]
[349202038,1737033047257,-1195.93,0.00020958,2]
[349202039,1737033047267,-293.98487758,0.00020958,3]
[349202040,1737033047276,-736.29,0.00020958,3]
[349202041,1737033047287,-1626.84,0.00020958,3]
[349202042,1737033047297,-5668.63,0.00020958,3]
[349202043,1737033047308,-500.0,0.00020958,3]
[349202044,1737033047319,-609.19,0.00020958,3]
[349202045,1737033047328,-7351.8,0.00020958,3]
[349202046,1737033047341,-500.0,0.00020958,3]
[349202047,1737033047352,-1002.68,0.00020958,3]
[349202048,1737033047361,-616.31,0.00020958,3]
[349202049,1737033047371,-500.0,0.00020958,3]
[349202050,1737033047380,-1090.54,0.00020958,3]
[349202051,1737033047390,-3894.3,0.00020958,3]
[349202052,1737033047400,-838.65,0.00020958,3]
[349202053,1737033047411,-1085.39,0.00020958,3]
[349202054,1737033047420,-600.16,0.00020958,3]
[349202055,1737033047429,-500.0,0.00020958,3]
[349202056,1737033047439,-2740.8,0.00020958,3]
[349202057,1737033047448,-905.83,0.00020958,3]
[349202058,1737033047457,-1525.85,0.00020958,3]
[349202059,1737033047467,-500.0,0.00020958,3]
[349202060,1737033047476,-5408.66585599,0.00020969,2]
[349202061,1737033047485,-4662.90547063,0.00020972,2]
[349202062,1737033047495,-1000.0,0.00021,21]
[349202063,1737033047504,-1000.0,0.00021,4]
[349202064,1737033047514,-10000.0,0.00021,3]
[349202065,1737033047523,-308.50202435,0.00021,2]
[349202066,1737033047533,-9998.25472008,0.00021,2]
[349202067,1737033047542,-188.0,0.00021,2]
[349202068,1737033047552,-3000.0,0.00021,2]
[349202069,1737033047562,-3000.0,0.0002101,2]
[349202070,1737033047571,-408.022755,0.00021014,2]
[349202071,1737033047581,-3000.0,0.0002102,2]
[349202072,1737033047592,-263.46,0.00021026,2]
[349202073,1737033047601,-272.03,0.00021026,2]
[349202074,1737033047611,-3000.0,0.0002103,2]
[349202075,1737033047620,-3000.0,0.0002104,2]
[349202076,1737033047630,-3000.0,0.0002105,2]
[349202077,1737033047640,-3000.0,0.0002106,2]
[349202078,1737033047649,-3000.0,0.0002107,2]
[349202079,1737033047659,-3000.0,0.0002108,2]
[349202080,1737033047668,-3000.0,0.0002109,2]
[349202081,1737033047678,-500.0,0.00021095,3]
[349202082,1737033047688,-832.53,0.00021095,3]
[349202083,1737033047698,-500.0,0.00021095,3]
[349202084,1737033047708,-14119.6,0.00021095,3]
[349202085,1737033047717,-1869.13,0.00021095,3]
[349202086,1737033047727,-2291.8,0.00021095,3]
[349202087,1737033047736,-1195.93,0.00021095,2]
[349202088,1737033047746,-736.29,0.00021095,3]
[349202089,1737033047756,-1626.84,0.00021095,3]
[349202090,1737033047766,-5668.63,0.00021095,3]
[349202091,1737033047775,-500.0,0.00021095,3]
[349202092,1737033047784,-609.19,0.00021095,3]
[349202093,1737033047794,-7351.8,0.00021095,3]
[349202094,1737033047803,-500.0,0.00021095,3]
[349202095,1737033047813,-1002.68,0.00021095,3]
[349202096,1737033047822,-616.31,0.00021095,3]
[349202097,1737033047832,-500.0,0.00021095,3]
[349202098,1737033047845,-1090.54,0.00021095,3]
[349202099,1737033047854,-3894.3,0.00021095,3]
[349202100,1737033047864,-838.65,0.00021095,3]
[349202101,1737033047874,-1085.39,0.00021095,3]
[349202102,1737033047883,-600.16,0.00021095,3]
[349202103,1737033047893,-500.0,0.00021095,3]
[349202104,1737033047903,-2740.8,0.00021095,3]
[349202105,1737033047912,-905.83,0.00021095,3]
[349202106,1737033047922,-1525.85,0.00021095,3]
[349202107,1737033047932,-600.28265216,0.00021095,3]
[349202108,1737033047940,-408.022755,0.00021096,2]
[349202109,1737033047950,-3000.0,0.000211,2]
[349202110,1737033047960,-3000.0,0.0002111,2]
[349202111,1737033047970,-3000.0,0.0002112,2]
[349202112,1737033047980,-3000.0,0.0002113,2]
[349202113,1737033047990,-3000.0,0.0002114,2]
[349202114,1737033047999,-5408.66585599,0.00021141,2]
[349202115,1737033048009,-3000.0,0.0002115,2]
[349202116,1737033048019,-3000.0,0.0002116,2]
[349202117,1737033048029,-3000.0,0.0002117,2]
[349202118,1737033048040,-3000.0,0.0002118,2]
[349202119,1737033048050,-3000.0,0.0002119,2]
[349202120,1737033048059,-3000.0,0.000212,2]
[349202121,1737033048069,-3000.0,0.0002121,2]
[349202122,1737033048079,-3000.0,0.0002122,2]
[349202123,1737033048093,-3000.0,0.0002123,2]
[349202124,1737033048103,-500.0,0.00021232,3]
[349202125,1737033048113,-832.53,0.00021232,3]
[349202126,1737033048123,-500.0,0.00021232,3]
[349202127,1737033048133,-14119.6,0.00021232,3]
[349202128,1737033048144,-1869.13,0.00021232,3]
[349202129,1737033048154,-2291.8,0.00021232,3]
[349202130,1737033048164,-1195.93,0.00021232,2]
[349202131,1737033048175,-736.29,0.00021232,3]
[349202132,1737033048185,-1626.84,0.00021232,3]
[349202133,1737033048195,-5668.63,0.00021232,3]
[349202134,1737033048206,-500.0,0.00021232,3]
[349202135,1737033048216,-609.19,0.00021232,3]
[349202136,1737033048227,-7351.8,0.00021232,3]
[349202137,1737033048236,-500.0,0.00021232,3]
[349202138,1737033048246,-1002.68,0.00021232,3]
[349202139,1737033048256,-616.31,0.00021232,3]
[349202140,1737033048266,-500.0,0.00021232,3]
[349202141,1737033048275,-1090.54,0.00021232,3]
[349202142,1737033048285,-3894.3,0.00021232,3]
[349202143,1737033048295,-838.65,0.00021232,3]
[349202144,1737033048410,-1085.39,0.00021232,3]
[349202145,1737033048422,-600.16,0.00021232,3]
[349202146,1737033048433,-500.0,0.00021232,3]
[349202147,1737033048443,-2740.8,0.00021232,3]
[349202148,1737033048453,-905.83,0.00021232,3]
[349202149,1737033048463,-1525.85,0.00021232,3]
[349202150,1737033048474,-3000.0,0.0002124,2]
[349202151,1737033048485,-1000.0,0.00021243,2]
[349202152,1737033048494,-500.24816498,0.00021243,2]
[349202153,1737033048505,-1000.0,0.00021243,2]
[349202154,1737033048515,-558.25890713,0.00021243,2]
[349202155,1737033048526,-1000.0,0.00021243,2]
[349202156,1737033048537,-3000.0,0.0002125,2]
[349202157,1737033048548,-3000.0,0.0002126,2]
[349202158,1737033048558,-3000.0,0.0002127,2]
[349202159,1737033048568,-3000.0,0.0002128,2]
[349202160,1737033048579,-153.9204537,0.00021288,2]
[349202161,1737033048589,-214.9026291,0.00021288,2]
[349202162,1737033048604,-3000.0,0.0002129,2]
[349202163,1737033048615,-3000.0,0.000213,2]
[349202164,1737033048625,-3000.0,0.0002131,2]
[349202165,1737033048635,-5408.66585599,0.00021314,2]
[349202166,1737033048645,-3000.0,0.0002132,2]
[349202167,1737033048655,-3000.0,0.0002133,2]
[349202168,1737033048665,-3000.0,0.0002134,2]
[349202169,1737033048675,-3000.0,0.0002135,2]
[349202170,1737033048685,-3000.0,0.0002136,2]
[349202171,1737033048695,-500.0,0.00021369,3]
[349202172,1737033048705,-832.53,0.00021369,3]
[349202173,1737033048716,-500.0,0.00021369,3]
[349202174,1737033048726,-14119.6,0.00021369,3]
[349202175,1737033048736,-1869.13,0.00021369,3]
[349202176,1737033048746,-2291.8,0.00021369,3]
[349202177,1737033048757,-1195.93,0.00021369,2]
[349202178,1737033048768,-736.29,0.00021369,3]
[349202179,1737033048780,-1626.84,0.00021369,3]
[349202180,1737033048790,-5668.63,0.00021369,3]
[349202181,1737033048800,-500.0,0.00021369,3]
[349202182,1737033048811,-609.19,0.00021369,3]
[349202183,1737033048821,-7351.8,0.00021369,3]
[349202184,1737033048832,-500.0,0.00021369,3]
[349202185,1737033048846,-1002.68,0.00021369,3]
[349202186,1737033048856,-616.31,0.00021369,3]
[349202187,1737033048866,-500.0,0.00021369,3]
[349202188,1737033048876,-1090.54,0.00021369,3]
[349202189,1737033048885,-3894.3,0.00021369,3]
[349202190,1737033048895,-838.65,0.00021369,3]
[349202191,1737033048905,-1085.39,0.00021369,3]
[349202192,1737033048916,-600.16,0.00021369,3]
[349202193,1737033048927,-500.0,0.00021369,3]
[349202194,1737033048937,-2740.8,0.00021369,3]
[349202195,1737033048947,-905.83,0.00021369,3]
[349202196,1737033048956,-1525.85,0.00021369,3]
[349202197,1737033048966,-3000.0,0.0002137,2]
[349202198,1737033048977,-3000.0,0.0002138,2]
[349202199,1737033048987,-3000.0,0.0002139,2]
[349202200,1737033048997,-1000.0,0.00021398,2]
[349202201,1737033049008,-3000.0,0.000214,2]
[349202202,1737033049018,-3000.0,0.0002141,2]
[349202203,1737033049028,-500.0,0.00021414,2]
[349202204,1737033049037,-151.61164016,0.00021414,2]
[349202205,1737033049047,-500.0,0.00021414,2]
[349202206,1737033049057,-3000.0,0.0002142,2]
[349202207,1737033049067,-3000.0,0.0002143,2]
[349202208,1737033049077,-4352.599701,0.0002144,2]
[349202209,1737033049088,-5408.66585599,0.00021486,2]
[349202210,1737033049101,-500.0,0.00021506,3]
[349202211,1737033049111,-832.53,0.00021506,3]
[349202212,1737033049121,-500.0,0.00021506,3]
[349202213,1737033049130,-14119.6,0.00021506,3]
[349202214,1737033049140,-1869.13,0.00021506,3]
[349202215,1737033049150,-2291.8,0.00021506,3]
[349202216,1737033049160,-1195.93,0.00021506,2]
[349202217,1737033049170,-736.29,0.00021506,3]
[349202218,1737033049181,-1626.84,0.00021506,3]
[349202219,1737033049191,-5668.63,0.00021506,3]
[349202220,1737033049201,-500.0,0.00021506,3]
[349202221,1737033049211,-609.19,0.00021506,3]
[349202222,1737033049222,-7351.8,0.00021506,3]
[349202223,1737033049233,-500.0,0.00021506,3]
[349202224,1737033049243,-1002.68,0.00021506,3]
[349202225,1737033049254,-616.31,0.00021506,3]
[349202226,1737033049265,-500.0,0.00021506,3]
[349202227,1737033049275,-1090.54,0.00021506,3]
[349202228,1737033049286,-3894.3,0.00021506,3]
[349202229,1737033049296,-838.65,0.00021506,3]
[349202230,1737033049306,-1085.39,0.00021506,3]
[349202231,1737033049321,-600.16,0.00021506,3]
[349202232,1737033049331,-500.0,0.00021506,3]
[349202233,1737033049343,-2740.8,0.00021506,3]
[349202234,1737033049353,-905.83,0.00021506,3]
[349202235,1737033049364,-1525.85,0.00021506,3]
[349202236,1737033049374,-4662.90547063,0.00021514,2]
[349202237,1737033049385,-2791.03168896,0.00021536,2]
[349202238,1737033049396,-519.37026509,0.00021536,2]
[349202239,1737033049406,-9893.37,0.000216,2]
[349202240,1737033049417,-2263.99,0.000216,2]
[349202241,1737033049427,-7910.87,0.000216,2]
[349202242,1737033049437,-7548.0,0.000216,4]
[349202243,1737033049447,-500.0,0.00021643,3]
[349202244,1737033049457,-832.53,0.00021643,3]
[349202245,1737033049467,-621.11,0.00021643,3]
[349202246,1737033049477,-14119.6,0.00021643,3]
[349202247,1737033049487,-1869.13,0.00021643,3]
[349202248,1737033049496,-2291.8,0.00021643,3]
[349202249,1737033049508,-1195.93,0.00021643,2]
[349202250,1737033049519,-736.29,0.00021643,3]
[349202251,1737033049529,-1626.84,0.00021643,3]
[349202252,1737033049539,-5668.63,0.00021643,3]
[349202253,1737033049549,-500.0,0.00021643,3]
[349202254,1737033049558,-609.19,0.00021643,3]
[349202255,1737033049568,-7351.8,0.00021643,3]
[349202256,1737033049578,-500.0,0.00021643,3]
[349202257,1737033049588,-1002.68,0.00021643,3]
[349202258,1737033049600,-616.31,0.00021643,3]
[349202259,1737033049610,-500.0,0.00021643,3]
[349202260,1737033049621,-1090.54,0.00021643,3]
[349202261,1737033049631,-3894.3,0.00021643,3]
[349202262,1737033049641,-838.65,0.00021643,3]
[349202263,1737033049652,-1085.39,0.00021643,3]
[349202264,1737033049662,-600.16,0.00021643,3]
[349202265,1737033049673,-500.0,0.00021643,3]
[349202266,1737033049683,-2740.8,0.00021643,3]
[349202267,1737033049694,-905.83,0.00021643,3]
[349202268,1737033049704,-1525.85,0.00021643,3]
[349202269,1737033049714,-5408.66585599,0.00021659,3]
[349202270,1737033049724,-4480.62973491,0.00021673,2]
[349202271,1737033049735,-5000.0,0.00021673,2]
[349202272,1737033049745,-5000.0,0.00021673,2]
[349202273,1737033049754,-5000.0,0.00021673,2]
[349202274,1737033049764,-5000.0,0.00021673,2]
[349202275,1737033049774,-2000.0,0.0002172,2]
[349202276,1737033049783,-500.0,0.0002178,3]
[349202277,1737033049793,-832.53,0.0002178,3]
[349202278,1737033049803,-14119.6,0.0002178,3]
[349202279,1737033049813,-1869.13,0.0002178,3]
[349202280,1737033049823,-2291.8,0.0002178,3]
[349202281,1737033049834,-1195.93,0.0002178,2]
[349202282,1737033049846,-736.29,0.0002178,3]
[349202283,1737033049856,-1626.84,0.0002178,3]
[349202284,1737033049867,-5668.63,0.0002178,3]
[349202285,1737033049877,-500.0,0.0002178,3]
[349202286,1737033049888,-609.19,0.0002178,3]
[349202287,1737033049898,-7351.8,0.0002178,3]
[349202288,1737033049908,-604.61437421,0.0002178,3]
[349202289,1737033049918,-1002.68,0.0002178,3]
[349202290,1737033049931,-616.31,0.0002178,3]
[349202291,1737033049941,-500.0,0.0002178,3]
[349202292,1737033049951,-1090.54,0.0002178,3]
[349202293,1737033049961,-3894.3,0.0002178,3]
[349202294,1737033049971,-838.65,0.0002178,3]
[349202295,1737033049982,-1085.39,0.0002178,3]
[349202296,1737033049991,-600.16,0.0002178,3]
[349202297,1737033050001,-500.0,0.0002178,3]
[349202298,1737033050011,-2740.8,0.0002178,3]
[349202299,1737033050021,-905.83,0.0002178,3]
[349202300,1737033050030,-1525.85,0.0002178,3]
[349202301,1737033050039,-5408.66585599,0.00021831,3]
[349202302,1737033050049,-353.3916328,0.00021836,2]
[349202303,1737033050058,-655.82130697,0.0002184,2]
[349202304,1737033050068,-2200.0,0.0002188,2]
[349202305,1737033050078,-547.80377751,0.0002188,2]
[349202306,1737033050088,-200.29636254,0.0002188,2]
[349202307,1737033050101,-500.0,0.0002188,2]
[349202308,1737033050111,-299.82,0.0002188,2]
[349202309,1737033050120,-500.0,0.0002188,2]
[349202310,1737033050131,-500.0,0.0002188,2]
[349202311,1737033050140,-500.0,0.0002188,2]
[349202312,1737033050150,-152.09741219,0.0002188,2]
[349202313,1737033050160,-500.0,0.0002188,2]
[349202314,1737033050175,-500.0,0.0002188,2]
[349202315,1737033050185,-500.0,0.0002188,2]
[349202316,1737033050194,-500.0,0.0002188,2]
[349202317,1737033050204,-19469.66891629,0.0002189,3]
[349202318,1737033050213,-500.0,0.00021917,2]
[349202319,1737033050223,-500.0,0.00021917,3]
[349202320,1737033050232,-500.0,0.00021917,3]
[349202321,1737033050241,-501.37101833,0.00021917,3]
[349202322,1737033050251,-464.82,0.00021917,3]
[349202323,1737033050261,-832.53,0.00021917,3]
[349202324,1737033050270,-1023.96557664,0.00021917,2]
[349202325,1737033050280,-14119.6,0.00021917,3]
[349202326,1737033050290,-1869.13,0.00021917,3]
[349202327,1737033050300,-2291.8,0.00021917,3]
[349202328,1737033050311,-1195.93,0.00021917,2]
[349202329,1737033050321,-736.29,0.00021917,3]
[349202330,1737033050330,-1626.84,0.00021917,3]
[349202331,1737033050339,-5668.63,0.00021917,3]
[349202332,1737033050354,-372.23184084,0.00021917,3]
[349202333,1737033050363,-609.19,0.00021917,3]
[349202334,1737033050373,-499.0,0.00021917,2]
[349202335,1737033050384,-7351.8,0.00021917,3]
[349202336,1737033050393,-1002.68,0.00021917,3]
[349202337,1737033050403,-616.31,0.00021917,3]
[349202338,1737033050413,-500.0,0.00021917,3]
[349202339,1737033050423,-1090.54,0.00021917,3]
[349202340,1737033050433,-3894.3,0.00021917,3]
[349202341,1737033050443,-838.65,0.00021917,3]
[349202342,1737033050454,-1085.39,0.00021917,3]
[349202343,1737033050464,-600.16,0.00021917,3]
[349202344,1737033050474,-326.47470853,0.00021917,3]
[349202345,1737033050484,-2740.8,0.00021917,3]
[349202346,1737033050495,-905.83,0.00021917,3]
[349202347,1737033050506,-1525.85,0.00021917,3]
[349202348,1737033050516,-219.55234013,0.00021918,2]
[349202349,1737033050527,-166.67,0.0002192,2]
[349202350,1737033050536,-166.67,0.0002192,2]
[349202351,1737033050546,-166.67,0.0002192,2]
[349202352,1737033050556,-166.67,0.0002192,2]
[349202353,1737033050565,-166.67,0.0002192,2]
[349202354,1737033050575,-166.67,0.0002192,2]
[349202355,1737033050585,-166.67,0.0002192,2]
[349202356,1737033050596,-5000.0,0.00021929,2]
[349202357,1737033050607,-1000.0,0.00021962,2]
[349202358,1737033050616,-567.54006968,0.00021962,2]
[349202359,1737033050626,-1224.9824229,0.00022,3]
[349202360,1737033050636,-5003.725,0.00022,2]
[349202361,1737033050646,-14020.66202246,0.00022,2]
[349202362,1737033050657,-800.10788665,0.00022,5]
[349202363,1737033050667,-11864.41623184,0.00022,15]
[349202364,1737033050676,-41010.1836867,0.00022,7]
[349202365,1737033050686,-78057.03224511,0.00022,7]
[349202366,1737033050695,-162.00203726,0.00022,10]
[349202367,1737033050705,-345.07221463,0.00022,2]
[349202368,1737033050714,-1000.0,0.00022,2]
[349202369,1737033050724,-1000.0,0.00022,22]
[349202370,1737033050735,-1000.0,0.00022,4]
[349202371,1737033050744,-23534.99611168,0.00022,2]
[349202372,1737033050754,-10000.0,0.00022,4]
[349202373,1737033050763,-4998.25472008,0.00022,2]
[349202374,1737033050772,-5408.66585599,0.00022003,3]
[349202375,1737033050783,-832.53,0.00022054,3]
[349202376,1737033050880,-14119.6,0.00022054,3]
[349202377,1737033050890,-1869.13,0.00022054,3]
[349202378,1737033050899,-2291.8,0.00022054,3]
[349202379,1737033050909,-1195.93,0.00022054,2]
[349202380,1737033050919,-736.29,0.00022054,3]
[349202381,1737033050929,-1626.84,0.00022054,3]
[349202382,1737033050939,-5668.63,0.00022054,3]
[349202383,1737033050948,-609.19,0.00022054,3]
[349202384,1737033050958,-7351.8,0.00022054,3]
[349202385,1737033050967,-1002.68,0.00022054,3]
[349202386,1737033050977,-616.31,0.00022054,3]
[349202387,1737033050987,-500.0,0.00022054,3]
[349202388,1737033050996,-1090.54,0.00022054,3]
[349202389,1737033051006,-3894.3,0.00022054,3]
[349202390,1737033051016,-838.65,0.00022054,3]
[349202391,1737033051026,-1085.39,0.00022054,3]
[349202392,1737033051037,-600.16,0.00022054,3]
[349202393,1737033051047,-2740.8,0.00022054,3]
[349202394,1737033051056,-905.83,0.00022054,3]
[349202395,1737033051065,-1525.85,0.00022054,3]